[Event "January 2 Late 2024"]
[Site "https://www.chess.com"]
[Date "2024.01.02"]
[Round "3"]
[White "Caruana, Fabiano"]
[Black "Daggupati, Balaji"]
[Result "1-0"]
[Board "14"]
[TimeControl "180+1"]
[WhiteFideId "2020009"]
[BlackFideId "2090759"]
[WhiteElo "3031"]
[BlackElo "2742"]
[WhiteTeam "USA"]
[BlackTeam "USA"]
[WhiteClock "0:00:45"]
[BlackClock "0:00:03"]

1. e4 {[%clk 0:03:00]}  c5 {[%clk 0:03:00]} 2. Nf3 {[%clk 0:03:00]}  e6 {[%clk 0:03:00]} 3. c3 {[%clk 0:03:00]}  d5 {[%clk 0:02:59]} 4. e5 {[%clk 0:03:00]}  d4 {[%clk 0:02:52]} 5. d3 {[%clk 0:03:00]}  Nc6 {[%clk 0:02:51]} 6. g3 {[%clk 0:03:00]}  h6 {[%clk 0:02:33]} 7. Bg2 {[%clk 0:02:59]}  g5 {[%clk 0:02:33]} 8. O-O {[%clk 0:02:59]}  Bg7 {[%clk 0:02:29]} 9. Na3 {[%clk 0:02:49]}  Nxe5 {[%clk 0:02:23]} 10. Nxe5 {[%clk 0:02:48]}  Bxe5 {[%clk 0:02:23]} 11. Re1 {[%clk 0:02:41]}  Bg7 {[%clk 0:02:22]} 12. cxd4 {[%clk 0:02:42]}  cxd4 {[%clk 0:02:21]} 13. Bd2 {[%clk 0:02:31]}  Ne7 {[%clk 0:02:19]} 14. Rc1 {[%clk 0:02:27]}  O-O {[%clk 0:02:17]} 15. Bb4 {[%clk 0:02:23]}  a5 {[%clk 0:02:13]} 16. Bc5 {[%clk 0:02:23]}  Rb8 {[%clk 0:02:01]} 17. Nb5 {[%clk 0:02:14]}  Bd7 {[%clk 0:01:27]} 18. Nd6 {[%clk 0:02:12]}  b6 {[%clk 0:01:25]} 19. Ba3 {[%clk 0:01:54]}  b5 {[%clk 0:01:25]} 20. Nb7 {[%clk 0:01:45]}  Qe8 {[%clk 0:01:21]} 21. Bd6 {[%clk 0:01:44]}  Rc8 {[%clk 0:01:14]} 22. Nxa5 {[%clk 0:01:34]}  f5 {[%clk 0:00:54]} 23. Rxc8 {[%clk 0:01:31]}  Bxc8 {[%clk 0:00:55]} 24. Qb3 {[%clk 0:01:28]}  Rf7 {[%clk 0:00:55]} 25. Rxe6 {[%clk 0:01:13]}  Bxe6 {[%clk 0:00:51]} 26. Qxe6 {[%clk 0:01:14]}  Kh7 {[%clk 0:00:30]} 27. Bd5 {[%clk 0:00:59]}  Rf6 {[%clk 0:00:16]} 28. Qxe7 {[%clk 0:00:59]}  Qc8 {[%clk 0:00:12]} 29. Be5 {[%clk 0:00:51]}  Rg6 {[%clk 0:00:11]} 30. Nc6 {[%clk 0:00:48]}  Kh8 {[%clk 0:00:03]} 31. Qf7 {[%clk 0:00:45]} 1-0

[Event "January 2 Late 2024"]
[Site "https://www.chess.com"]
[Date "2024.01.02"]
[Round "3"]
[White "Yarar, Bora"]
[Black "Bluebaum, Matthias"]
[Result "0-1"]
[Board "16"]
[TimeControl "180+1"]
[WhiteFideId "34588400"]
[BlackFideId "24651516"]
[WhiteElo "2730"]
[BlackElo "3024"]
[WhiteTeam "TUR"]
[BlackTeam "GER"]
[WhiteClock "0:00:35"]
[BlackClock "0:01:37"]

1. e4 {[%clk 0:03:00]}  e6 {[%clk 0:03:00]} 2. d4 {[%clk 0:03:00]}  d5 {[%clk 0:03:01]} 3. e5 {[%clk 0:03:01]}  c5 {[%clk 0:03:01]} 4. c3 {[%clk 0:03:02]}  Nc6 {[%clk 0:03:02]} 5. Nf3 {[%clk 0:03:02]}  Nge7 {[%clk 0:03:02]} 6. Na3 {[%clk 0:03:03]}  Bd7 {[%clk 0:03:02]} 7. Nc2 {[%clk 0:03:03]}  Qa5 {[%clk 0:03:03]} 8. Bd3 {[%clk 0:02:45]}  Nxd4 {[%clk 0:03:03]} 9. Nfxd4 {[%clk 0:02:37]}  cxd4 {[%clk 0:03:04]} 10. Nxd4 {[%clk 0:02:34]}  Nc6 {[%clk 0:03:04]} 11. Nxc6 {[%clk 0:02:31]}  Bxc6 {[%clk 0:03:05]} 12. O-O {[%clk 0:02:31]}  d4 {[%clk 0:03:05]} 13. c4 {[%clk 0:02:25]}  Qxe5 {[%clk 0:03:04]} 14. Re1 {[%clk 0:02:24]}  Qf6 {[%clk 0:03:00]} 15. a3 {[%clk 0:02:21]}  a5 {[%clk 0:02:57]} 16. Qg4 {[%clk 0:02:18]}  Be7 {[%clk 0:02:58]} 17. Bf4 {[%clk 0:02:14]}  O-O {[%clk 0:02:40]} 18. Be5 {[%clk 0:02:12]}  Qg5 {[%clk 0:02:41]} 19. Qxg5 {[%clk 0:01:55]}  Bxg5 {[%clk 0:02:42]} 20. Rad1 {[%clk 0:01:50]}  Rfd8 {[%clk 0:02:40]} 21. Be4 {[%clk 0:01:39]}  Bf6 {[%clk 0:02:33]} 22. f4 {[%clk 0:01:36]}  Rac8 {[%clk 0:02:27]} 23. Bd3 {[%clk 0:01:31]}  Ba4 {[%clk 0:02:21]} 24. Rd2 {[%clk 0:01:28]}  Be7 {[%clk 0:02:19]} 25. f5 {[%clk 0:01:24]}  f6 {[%clk 0:02:17]} 26. Bg3 {[%clk 0:01:12]}  e5 {[%clk 0:02:17]} 27. Rc1 {[%clk 0:01:07]}  Bc5 {[%clk 0:02:15]} 28. Kf1 {[%clk 0:01:05]}  Bc6 {[%clk 0:02:15]} 29. Re2 {[%clk 0:01:05]}  e4 {[%clk 0:02:09]} 30. Rxe4 {[%clk 0:01:05]}  Bxe4 {[%clk 0:02:07]} 31. Bxe4 {[%clk 0:01:06]}  b6 {[%clk 0:02:05]} 32. Ke2 {[%clk 0:01:01]}  Bd6 {[%clk 0:01:55]} 33. Bxd6 {[%clk 0:00:55]}  Rxd6 {[%clk 0:01:56]} 34. Kd3 {[%clk 0:00:55]}  Kf8 {[%clk 0:01:56]} 35. g4 {[%clk 0:00:51]}  Rd7 {[%clk 0:01:54]} 36. Rc2 {[%clk 0:00:48]}  Ke7 {[%clk 0:01:41]} 37. Bd5 {[%clk 0:00:35]}  Rxd5 {[%clk 0:01:37]} 0-1

[Event "January 2 Late 2024"]
[Site "https://www.chess.com"]
[Date "2024.01.02"]
[Round "3"]
[White "Van Foreest, Jorden"]
[Black "Rakitin, Daniil"]
[Result "1-0"]
[Board "21"]
[TimeControl "180+1"]
[WhiteFideId "1039784"]
[BlackFideId "24219762"]
[WhiteElo "3001"]
[BlackElo "2715"]
[WhiteTeam "NED"]
[BlackTeam "RUS"]
[WhiteClock "0:02:17"]
[BlackClock "0:00:08"]

1. e4 {[%clk 0:03:00]}  c5 {[%clk 0:02:58]} 2. Nf3 {[%clk 0:03:01]}  Nc6 {[%clk 0:02:58]} 3. Bc4 {[%clk 0:03:01]}  e6 {[%clk 0:02:58]} 4. O-O {[%clk 0:03:00]}  a6 {[%clk 0:02:58]} 5. Re1 {[%clk 0:03:00]}  b5 {[%clk 0:02:58]} 6. Bf1 {[%clk 0:03:00]}  Bb7 {[%clk 0:02:59]} 7. c3 {[%clk 0:03:00]}  Nge7 {[%clk 0:02:59]} 8. d4 {[%clk 0:03:01]}  cxd4 {[%clk 0:03:00]} 9. cxd4 {[%clk 0:03:02]}  d5 {[%clk 0:03:01]} 10. e5 {[%clk 0:03:02]}  Nf5 {[%clk 0:02:50]} 11. g3 {[%clk 0:03:02]}  Qb6 {[%clk 0:02:50]} 12. Be3 {[%clk 0:03:02]}  Be7 {[%clk 0:02:47]} 13. Nc3 {[%clk 0:03:00]}  Rc8 {[%clk 0:02:42]} 14. Bd3 {[%clk 0:02:57]}  Nxe3 {[%clk 0:02:20]} 15. Rxe3 {[%clk 0:02:58]}  O-O {[%clk 0:02:14]} 16. h4 {[%clk 0:02:57]}  Kh8 {[%clk 0:02:01]} 17. Ne2 {[%clk 0:02:55]}  Rce8 {[%clk 0:01:37]} 18. Bb1 {[%clk 0:02:42]}  f5 {[%clk 0:01:28]} 19. Nf4 {[%clk 0:02:38]}  Bc8 {[%clk 0:01:00]} 20. Bc2 {[%clk 0:02:32]}  Bd7 {[%clk 0:00:59]} 21. Qd2 {[%clk 0:02:30]}  Rc8 {[%clk 0:00:58]} 22. Rd1 {[%clk 0:02:29]}  Na5 {[%clk 0:00:45]} 23. b3 {[%clk 0:02:24]}  Rc7 {[%clk 0:00:43]} 24. Qe2 {[%clk 0:02:24]}  Rfc8 {[%clk 0:00:42]} 25. Bb1 {[%clk 0:02:24]}  Rc1 {[%clk 0:00:36]} 26. Kg2 {[%clk 0:02:24]}  Rxd1 {[%clk 0:00:35]} 27. Qxd1 {[%clk 0:02:25]}  Qc7 {[%clk 0:00:26]} 28. Ng5 {[%clk 0:02:25]}  Qc1 {[%clk 0:00:20]} 29. Qh5 {[%clk 0:02:23]}  Bxg5 {[%clk 0:00:20]} 30. hxg5 {[%clk 0:02:24]}  Qxb1 {[%clk 0:00:19]} 31. Ng6+ {[%clk 0:02:22]}  Kg8 {[%clk 0:00:19]} 32. Ne7+ {[%clk 0:02:23]}  Kf8 {[%clk 0:00:15]} 33. Nxc8 {[%clk 0:02:23]}  Bxc8 {[%clk 0:00:16]} 34. Qxh7 {[%clk 0:02:21]}  Qc2 {[%clk 0:00:14]} 35. g6 {[%clk 0:02:20]}  f4 {[%clk 0:00:07]} 36. Qh8+ {[%clk 0:02:19]}  Ke7 {[%clk 0:00:08]} 37. Qxg7+ {[%clk 0:02:19]}  Kd8 {[%clk 0:00:09]} 38. Rf3 {[%clk 0:02:16]}  Qe4 {[%clk 0:00:07]} 39. Qf8+ {[%clk 0:02:15]}  Kc7 {[%clk 0:00:07]} 40. g7 {[%clk 0:02:16]}  Nc6 {[%clk 0:00:07]} 41. g8=Q {[%clk 0:02:15]}  Nxd4 {[%clk 0:00:07]} 42. Qxc8+ {[%clk 0:02:15]}  Kb6 {[%clk 0:00:08]} 43. Qgd8+ {[%clk 0:02:16]}  Ka7 {[%clk 0:00:08]} 44. Qdc7# {[%clk 0:02:17]} 1-0

[Event "January 2 Late 2024"]
[Site "https://www.chess.com"]
[Date "2024.01.02"]
[Round "3"]
[White "Hamidi, Amir Mohammad"]
[Black "Le, Tuan Minh"]
[Result "0-1"]
[Board "22"]
[TimeControl "180+1"]
[WhiteFideId "12563285"]
[BlackFideId "12401153"]
[WhiteElo "2711"]
[BlackElo "3000"]
[WhiteTeam "IRI"]
[BlackTeam "VIE"]
[WhiteClock "0:00:10"]
[BlackClock "0:01:07"]

1. Nf3 {[%clk 0:03:00]}  d5 {[%clk 0:02:59]} 2. c4 {[%clk 0:03:01]}  c6 {[%clk 0:02:56]} 3. g3 {[%clk 0:03:01]}  g6 {[%clk 0:02:56]} 4. Bg2 {[%clk 0:03:01]}  Bg7 {[%clk 0:02:57]} 5. O-O {[%clk 0:03:01]}  Nf6 {[%clk 0:02:57]} 6. b3 {[%clk 0:03:00]}  Ne4 {[%clk 0:02:55]} 7. d4 {[%clk 0:02:59]}  O-O {[%clk 0:02:55]} 8. Bb2 {[%clk 0:02:58]}  Nd7 {[%clk 0:02:55]} 9. cxd5 {[%clk 0:02:54]}  cxd5 {[%clk 0:02:55]} 10. Nc3 {[%clk 0:02:54]}  Ndf6 {[%clk 0:02:50]} 11. Ne5 {[%clk 0:02:52]}  Bf5 {[%clk 0:02:42]} 12. Rc1 {[%clk 0:02:50]}  Rc8 {[%clk 0:02:39]} 13. Na4 {[%clk 0:02:44]}  Bh6 {[%clk 0:02:17]} 14. Rxc8 {[%clk 0:02:41]}  Qxc8 {[%clk 0:02:17]} 15. e3 {[%clk 0:02:37]}  Bh3 {[%clk 0:02:15]} 16. Qc1 {[%clk 0:02:26]}  Bxg2 {[%clk 0:02:06]} 17. Kxg2 {[%clk 0:02:25]}  Qb8 {[%clk 0:01:39]} 18. Nc5 {[%clk 0:01:58]}  Rc8 {[%clk 0:01:36]} 19. Ncd7 {[%clk 0:01:58]}  Nxd7 {[%clk 0:01:26]} 20. Nxd7 {[%clk 0:01:56]}  Rxc1 {[%clk 0:01:23]} 21. Nxb8 {[%clk 0:01:56]}  Rc2 {[%clk 0:01:24]} 22. Ba3 {[%clk 0:00:30]}  Bxe3 {[%clk 0:01:22]} 23. Bxe7 {[%clk 0:00:30]}  Bxf2 {[%clk 0:01:17]} 24. Nd7 {[%clk 0:00:19]}  Bxd4+ {[%clk 0:01:10]} 25. Kh3 {[%clk 0:00:19]}  f5 {[%clk 0:01:08]} 26. Rd1 {[%clk 0:00:10]}  Nf2+ {[%clk 0:01:07]} 0-1

[Event "January 2 Late 2024"]
[Site "https://www.chess.com"]
[Date "2024.01.02"]
[Round "3"]
[White "Yoo, Christopher Woojin"]
[Black "Araujo Sanchez, Josue"]
[Result "0-1"]
[Board "30"]
[TimeControl "180+1"]
[WhiteFideId "30909694"]
[BlackFideId "6416896"]
[WhiteElo "2946"]
[BlackElo "2682"]
[WhiteTeam "USA"]
[BlackTeam "DOM"]
[WhiteClock "0:00:00"]
[BlackClock "0:00:16"]

1. d4 {[%clk 0:03:00]}  Nf6 {[%clk 0:02:59]} 2. c4 {[%clk 0:02:59]}  e6 {[%clk 0:02:59]} 3. Nc3 {[%clk 0:02:59]}  Bb4 {[%clk 0:02:59]} 4. a3 {[%clk 0:02:58]}  Bxc3+ {[%clk 0:02:59]} 5. bxc3 {[%clk 0:02:59]}  c5 {[%clk 0:02:59]} 6. e3 {[%clk 0:02:57]}  Nc6 {[%clk 0:02:58]} 7. Bd3 {[%clk 0:02:57]}  O-O {[%clk 0:02:58]} 8. Ne2 {[%clk 0:02:57]}  d5 {[%clk 0:02:58]} 9. O-O {[%clk 0:02:51]}  dxc4 {[%clk 0:02:55]} 10. Bxc4 {[%clk 0:02:52]}  Qc7 {[%clk 0:02:55]} 11. f3 {[%clk 0:02:02]}  Rd8 {[%clk 0:02:46]} 12. Bb5 {[%clk 0:02:02]}  Bd7 {[%clk 0:02:05]} 13. a4 {[%clk 0:01:49]}  Na5 {[%clk 0:01:59]} 14. e4 {[%clk 0:01:43]}  a6 {[%clk 0:01:31]} 15. Bd3 {[%clk 0:01:34]}  Ne8 {[%clk 0:00:44]} 16. Bf4 {[%clk 0:01:25]}  Qc8 {[%clk 0:00:42]} 17. Bg5 {[%clk 0:01:22]}  f6 {[%clk 0:00:39]} 18. Bh4 {[%clk 0:01:21]}  Bc6 {[%clk 0:00:31]} 19. e5 {[%clk 0:01:20]}  c4 {[%clk 0:00:24]} 20. Bc2 {[%clk 0:01:18]}  Qd7 {[%clk 0:00:24]} 21. f4 {[%clk 0:01:04]}  f5 {[%clk 0:00:16]} 22. Bxd8 {[%clk 0:01:03]}  Rxd8 {[%clk 0:00:17]} 23. Rf2 {[%clk 0:01:01]}  Nc7 {[%clk 0:00:17]} 24. Rb1 {[%clk 0:00:50]}  Nd5 {[%clk 0:00:17]} 25. Rf3 {[%clk 0:00:47]}  g6 {[%clk 0:00:18]} 26. Rh3 {[%clk 0:00:46]}  Rf8 {[%clk 0:00:17]} 27. Qe1 {[%clk 0:00:45]}  Qe7 {[%clk 0:00:16]} 28. Kh1 {[%clk 0:00:36]}  Kg7 {[%clk 0:00:17]} 29. Qc1 {[%clk 0:00:28]}  h5 {[%clk 0:00:16]} 30. Qb2 {[%clk 0:00:20]}  Rc8 {[%clk 0:00:16]} 31. Rg1 {[%clk 0:00:19]}  Rh8 {[%clk 0:00:15]} 32. Qc1 {[%clk 0:00:17]}  Rh7 {[%clk 0:00:15]} 33. Rg3 {[%clk 0:00:12]}  Kf7 {[%clk 0:00:15]} 34. Rg5 {[%clk 0:00:09]}  Rg7 {[%clk 0:00:14]} 35. h4 {[%clk 0:00:04]}  Qd7 {[%clk 0:00:14]} 36. Kh2 {[%clk 0:00:04]}  Bxa4 {[%clk 0:00:14]} 37. Bxa4 {[%clk 0:00:03]}  Qxa4 {[%clk 0:00:15]} 38. Rf1 {[%clk 0:00:03]}  Nb3 {[%clk 0:00:15]} 39. Qb2 {[%clk 0:00:02]}  Qd7 {[%clk 0:00:14]} 40. Kg1 {[%clk 0:00:02]}  a5 {[%clk 0:00:15]} 41. Rb1 {[%clk 0:00:01]}  a4 {[%clk 0:00:15]} 42. Qa2 {[%clk 0:00:02]}  b5 {[%clk 0:00:16]} 43. Rg3 {[%clk 0:00:02]}  Qe7 {[%clk 0:00:16]} 44. Rh3 {[%clk 0:00:03]}  Nb6 {[%clk 0:00:16]} 45. Kh1 {[%clk 0:00:00]}  Nd5 {[%clk 0:00:16]} 0-1

[Event "January 2 Late 2024"]
[Site "https://www.chess.com"]
[Date "2024.01.02"]
[Round "3"]
[White "Riff, Vincent"]
[Black "Harsha Bharathakoti"]
[Result "0-1"]
[Board "32"]
[TimeControl "180+1"]
[WhiteFideId "617776"]
[BlackFideId "5078776"]
[WhiteElo "2680"]
[BlackElo "2917"]
[WhiteTeam "FRA"]
[BlackTeam "IND"]
[WhiteClock "0:00:00"]
[BlackClock "0:00:11"]

1. e4 {[%clk 0:02:59]}  c5 {[%clk 0:03:00]} 2. Nf3 {[%clk 0:02:58]}  d6 {[%clk 0:03:00]} 3. d4 {[%clk 0:02:53]}  cxd4 {[%clk 0:03:01]} 4. Nxd4 {[%clk 0:02:53]}  Nf6 {[%clk 0:03:00]} 5. Nc3 {[%clk 0:02:53]}  Nc6 {[%clk 0:03:01]} 6. Nd5 {[%clk 0:02:53]}  Nxd5 {[%clk 0:02:58]} 7. exd5 {[%clk 0:02:53]}  Qa5+ {[%clk 0:02:57]} 8. Bd2 {[%clk 0:02:54]}  Qxd5 {[%clk 0:02:58]} 9. Nb5 {[%clk 0:02:54]}  Qe6+ {[%clk 0:02:58]} 10. Be2 {[%clk 0:02:54]}  Qd7 {[%clk 0:02:59]} 11. c4 {[%clk 0:02:55]}  e6 {[%clk 0:02:50]} 12. O-O {[%clk 0:02:48]}  Be7 {[%clk 0:02:51]} 13. Bf4 {[%clk 0:02:48]}  e5 {[%clk 0:02:51]} 14. Be3 {[%clk 0:02:49]}  O-O {[%clk 0:02:50]} 15. a3 {[%clk 0:02:48]}  Qd8 {[%clk 0:02:47]} 16. b4 {[%clk 0:02:44]}  Be6 {[%clk 0:02:46]} 17. Qb3 {[%clk 0:02:42]}  a6 {[%clk 0:02:42]} 18. Nc3 {[%clk 0:02:42]}  Nd4 {[%clk 0:02:35]} 19. Bxd4 {[%clk 0:02:42]}  exd4 {[%clk 0:02:36]} 20. Nd5 {[%clk 0:02:41]}  Bxd5 {[%clk 0:02:35]} 21. cxd5 {[%clk 0:02:42]}  Bg5 {[%clk 0:02:11]} 22. Rad1 {[%clk 0:02:25]}  Re8 {[%clk 0:02:11]} 23. Bf3 {[%clk 0:02:15]}  Bf6 {[%clk 0:02:03]} 24. g3 {[%clk 0:02:11]}  Rc8 {[%clk 0:02:03]} 25. Bg4 {[%clk 0:01:39]}  Rc3 {[%clk 0:01:59]} 26. Qa4 {[%clk 0:01:39]}  g6 {[%clk 0:01:45]} 27. b5 {[%clk 0:01:37]}  h5 {[%clk 0:01:38]} 28. Bh3 {[%clk 0:01:36]}  axb5 {[%clk 0:01:33]} 29. Qxb5 {[%clk 0:01:36]}  Re7 {[%clk 0:01:17]} 30. a4 {[%clk 0:01:34]}  h4 {[%clk 0:01:18]} 31. a5 {[%clk 0:01:15]}  Kg7 {[%clk 0:01:10]} 32. Qb4 {[%clk 0:01:09]}  hxg3 {[%clk 0:00:49]} 33. hxg3 {[%clk 0:01:10]}  Qc7 {[%clk 0:00:37]} 34. Rd2 {[%clk 0:00:40]}  Rc4 {[%clk 0:00:34]} 35. Qb5 {[%clk 0:00:37]}  Rc5 {[%clk 0:00:34]} 36. Qb4 {[%clk 0:00:28]}  Qxa5 {[%clk 0:00:29]} 37. Rxd4 {[%clk 0:00:29]}  Bxd4 {[%clk 0:00:29]} 38. Qxd4+ {[%clk 0:00:30]}  Kg8 {[%clk 0:00:28]} 39. Qf6 {[%clk 0:00:28]}  Re1 {[%clk 0:00:24]} 40. Qxd6 {[%clk 0:00:25]}  Rxf1+ {[%clk 0:00:23]} 41. Bxf1 {[%clk 0:00:25]}  Rxd5 {[%clk 0:00:22]} 42. Qb8+ {[%clk 0:00:25]}  Qd8 {[%clk 0:00:22]} 43. Qxb7 {[%clk 0:00:25]}  Rd1 {[%clk 0:00:23]} 44. Qb5 {[%clk 0:00:23]}  Qd4 {[%clk 0:00:24]} 45. Qe2 {[%clk 0:00:20]}  Kg7 {[%clk 0:00:22]} 46. Qf3 {[%clk 0:00:18]}  Qa1 {[%clk 0:00:20]} 47. Qe2 {[%clk 0:00:18]}  Re1 {[%clk 0:00:20]} 48. Qd3 {[%clk 0:00:18]}  Rd1 {[%clk 0:00:20]} 49. Qc4 {[%clk 0:00:17]}  Qd4 {[%clk 0:00:20]} 50. Qe2 {[%clk 0:00:16]}  Rd2 {[%clk 0:00:20]} 51. Qf3 {[%clk 0:00:16]}  Rb2 {[%clk 0:00:19]} 52. Qg2 {[%clk 0:00:14]}  Qb6 {[%clk 0:00:14]} 53. Qf3 {[%clk 0:00:13]}  Qf6 {[%clk 0:00:14]} 54. Qe3 {[%clk 0:00:12]}  Rb1 {[%clk 0:00:14]} 55. Qd3 {[%clk 0:00:12]}  Rc1 {[%clk 0:00:13]} 56. Qe3 {[%clk 0:00:11]}  Rc2 {[%clk 0:00:13]} 57. Bd3 {[%clk 0:00:03]}  Rc3 {[%clk 0:00:13]} 58. Qe2 {[%clk 0:00:02]}  Qd4 {[%clk 0:00:12]} 59. Ba6 {[%clk 0:00:03]}  Rxg3+ {[%clk 0:00:13]} 60. Kf1 {[%clk 0:00:02]}  Ra3 {[%clk 0:00:13]} 61. Bc4 {[%clk 0:00:03]}  Ra1+ {[%clk 0:00:13]} 62. Kg2 {[%clk 0:00:03]}  Rc1 {[%clk 0:00:11]} 63. Bb3 {[%clk 0:00:03]}  Rc3 {[%clk 0:00:12]} 64. Ba2 {[%clk 0:00:00]}  Rc5 {[%clk 0:00:11]} 0-1

[Event "January 2 Late 2024"]
[Site "https://www.chess.com"]
[Date "2024.01.02"]
[Round "3"]
[White "Popilski, Gil"]
[Black "Ibarra Jerez, Jose Carlos"]
[Result "1/2-1/2"]
[Board "34"]
[TimeControl "180+1"]
[WhiteFideId "2809060"]
[BlackFideId "2226332"]
[WhiteElo "2678"]
[BlackElo "2906"]
[WhiteTeam "ISR"]
[BlackTeam "ESP"]
[WhiteClock "0:00:12"]
[BlackClock "0:00:09"]

1. e4 {[%clk 0:03:00]}  c5 {[%clk 0:02:59]} 2. Nf3 {[%clk 0:03:00]}  Nc6 {[%clk 0:03:00]} 3. Nc3 {[%clk 0:02:58]}  e6 {[%clk 0:02:59]} 4. g3 {[%clk 0:02:57]}  Nf6 {[%clk 0:02:55]} 5. Bg2 {[%clk 0:02:56]}  d5 {[%clk 0:02:54]} 6. exd5 {[%clk 0:02:55]}  exd5 {[%clk 0:02:55]} 7. O-O {[%clk 0:02:55]}  d4 {[%clk 0:02:55]} 8. Re1+ {[%clk 0:02:55]}  Be7 {[%clk 0:02:55]} 9. Ne4 {[%clk 0:02:53]}  Nxe4 {[%clk 0:02:55]} 10. Rxe4 {[%clk 0:02:54]}  d3 {[%clk 0:02:53]} 11. Ne5 {[%clk 0:02:52]}  dxc2 {[%clk 0:02:48]} 12. Qxc2 {[%clk 0:02:50]}  Nxe5 {[%clk 0:02:24]} 13. Rxe5 {[%clk 0:02:47]}  O-O {[%clk 0:02:24]} 14. d3 {[%clk 0:02:47]}  Bd6 {[%clk 0:02:16]} 15. Re1 {[%clk 0:02:39]}  Rb8 {[%clk 0:02:12]} 16. Be3 {[%clk 0:02:34]}  Bf5 {[%clk 0:02:10]} 17. Rad1 {[%clk 0:02:24]}  Re8 {[%clk 0:01:51]} 18. Qa4 {[%clk 0:02:21]}  a6 {[%clk 0:01:43]} 19. d4 {[%clk 0:02:20]}  b5 {[%clk 0:01:31]} 20. Qxa6 {[%clk 0:02:16]}  c4 {[%clk 0:01:31]} 21. a3 {[%clk 0:01:54]}  h5 {[%clk 0:01:29]} 22. Bd2 {[%clk 0:01:45]}  Rf8 {[%clk 0:01:11]} 23. Ba5 {[%clk 0:01:41]}  Qf6 {[%clk 0:01:05]} 24. Bc3 {[%clk 0:01:36]}  Qg6 {[%clk 0:00:58]} 25. d5 {[%clk 0:01:29]}  h4 {[%clk 0:00:44]} 26. Be5 {[%clk 0:01:28]}  Rfd8 {[%clk 0:00:44]} 27. Bxd6 {[%clk 0:01:26]}  Rxd6 {[%clk 0:00:45]} 28. Qa7 {[%clk 0:01:26]}  Rbd8 {[%clk 0:00:43]} 29. Qc5 {[%clk 0:01:20]}  hxg3 {[%clk 0:00:26]} 30. hxg3 {[%clk 0:01:20]}  Bd7 {[%clk 0:00:27]} 31. Re5 {[%clk 0:01:16]}  Bg4 {[%clk 0:00:18]} 32. Rde1 {[%clk 0:01:16]}  f6 {[%clk 0:00:13]} 33. Re7 {[%clk 0:01:14]}  Qh5 {[%clk 0:00:10]} 34. Qxb5 {[%clk 0:01:08]}  Bf3 {[%clk 0:00:10]} 35. Qxc4 {[%clk 0:01:07]}  Rxd5 {[%clk 0:00:09]} 36. R7e3 {[%clk 0:00:59]}  Bxg2 {[%clk 0:00:08]} 37. Kxg2 {[%clk 0:00:59]}  Kf8 {[%clk 0:00:06]} 38. Qb4+ {[%clk 0:00:57]}  Kg8 {[%clk 0:00:07]} 39. Qc4 {[%clk 0:00:54]}  Kf8 {[%clk 0:00:07]} 40. Re7 {[%clk 0:00:54]}  Rd4 {[%clk 0:00:05]} 41. Qe6 {[%clk 0:00:47]}  Qd5+ {[%clk 0:00:02]} 42. Qxd5 {[%clk 0:00:46]}  R8xd5 {[%clk 0:00:03]} 43. R7e2 {[%clk 0:00:43]}  Rb5 {[%clk 0:00:03]} 44. b4 {[%clk 0:00:42]}  Rd3 {[%clk 0:00:03]} 45. Ra1 {[%clk 0:00:42]}  Rb3 {[%clk 0:00:03]} 46. Kf1 {[%clk 0:00:39]}  Kf7 {[%clk 0:00:03]} 47. Ke1 {[%clk 0:00:39]}  Rb8 {[%clk 0:00:03]} 48. Kd1 {[%clk 0:00:38]}  Ra8 {[%clk 0:00:04]} 49. Kc2 {[%clk 0:00:32]}  Rbxa3 {[%clk 0:00:04]} 50. Rxa3 {[%clk 0:00:32]}  Rxa3 {[%clk 0:00:05]} 51. Kb2 {[%clk 0:00:32]}  Ra8 {[%clk 0:00:04]} 52. Kb3 {[%clk 0:00:32]}  Rb8 {[%clk 0:00:04]} 53. Rb2 {[%clk 0:00:29]}  Ke6 {[%clk 0:00:04]} 54. Kc4 {[%clk 0:00:30]}  Kd6 {[%clk 0:00:04]} 55. b5 {[%clk 0:00:30]}  Kc7 {[%clk 0:00:05]} 56. Kd5 {[%clk 0:00:30]}  Re8 {[%clk 0:00:05]} 57. b6+ {[%clk 0:00:29]}  Kb7 {[%clk 0:00:05]} 58. Kd6 {[%clk 0:00:30]}  Re1 {[%clk 0:00:05]} 59. Rb3 {[%clk 0:00:29]}  Re2 {[%clk 0:00:05]} 60. f4 {[%clk 0:00:29]}  f5 {[%clk 0:00:04]} 61. Kd5 {[%clk 0:00:28]}  Re1 {[%clk 0:00:04]} 62. Kd4 {[%clk 0:00:27]}  Re4+ {[%clk 0:00:04]} 63. Kd5 {[%clk 0:00:27]}  g5 {[%clk 0:00:04]} 64. fxg5 {[%clk 0:00:27]}  Rg4 {[%clk 0:00:05]} 65. Ke5 {[%clk 0:00:25]}  Rxg5 {[%clk 0:00:06]} 66. Kf4 {[%clk 0:00:25]}  Rh5 {[%clk 0:00:06]} 67. Rb5 {[%clk 0:00:26]}  Rh1 {[%clk 0:00:02]} 68. Rb4 {[%clk 0:00:23]}  Rf1+ {[%clk 0:00:02]} 69. Kg5 {[%clk 0:00:22]}  Rf3 {[%clk 0:00:03]} 70. Kh4 {[%clk 0:00:21]}  Rf1 {[%clk 0:00:02]} 71. Rb3 {[%clk 0:00:20]}  Rf2 {[%clk 0:00:02]} 72. Kg5 {[%clk 0:00:20]}  Rf1 {[%clk 0:00:03]} 73. Rb5 {[%clk 0:00:16]}  Rf3 {[%clk 0:00:03]} 74. Kh4 {[%clk 0:00:16]}  Rf1 {[%clk 0:00:02]} 75. Rb4 {[%clk 0:00:15]}  Rf2 {[%clk 0:00:02]} 76. Rf4 {[%clk 0:00:15]}  Rh2+ {[%clk 0:00:02]} 77. Kg5 {[%clk 0:00:16]}  Kxb6 {[%clk 0:00:03]} 78. Kxf5 {[%clk 0:00:16]}  Rh8 {[%clk 0:00:03]} 79. Rc4 {[%clk 0:00:15]}  Kb5 {[%clk 0:00:02]} 80. Rc7 {[%clk 0:00:15]}  Rf8+ {[%clk 0:00:02]} 81. Ke4 {[%clk 0:00:14]}  Rg8 {[%clk 0:00:02]} 82. Kf4 {[%clk 0:00:14]}  Rf8+ {[%clk 0:00:03]} 83. Ke3 {[%clk 0:00:14]}  Rg8 {[%clk 0:00:04]} 84. Kf3 {[%clk 0:00:14]}  Rf8+ {[%clk 0:00:04]} 85. Kg2 {[%clk 0:00:15]}  Kb6 {[%clk 0:00:04]} 86. Rc1 {[%clk 0:00:15]}  Rg8 {[%clk 0:00:05]} 87. Rc2 {[%clk 0:00:14]}  Kb5 {[%clk 0:00:05]} 88. Rc7 {[%clk 0:00:14]}  Kb6 {[%clk 0:00:05]} 89. Rc3 {[%clk 0:00:13]}  Kb5 {[%clk 0:00:06]} 90. Rc1 {[%clk 0:00:10]}  Kb6 {[%clk 0:00:06]} 91. Kh3 {[%clk 0:00:10]}  Rh8+ {[%clk 0:00:06]} 92. Kg4 {[%clk 0:00:11]}  Rg8+ {[%clk 0:00:07]} 93. Kf4 {[%clk 0:00:11]}  Rf8+ {[%clk 0:00:07]} 94. Ke3 {[%clk 0:00:11]}  Re8+ {[%clk 0:00:07]} 95. Kf2 {[%clk 0:00:12]}  Rf8+ {[%clk 0:00:08]} 96. Kg2 {[%clk 0:00:12]}  Rg8 {[%clk 0:00:09]} 1/2-1/2